Workbook

Sheet План ФХД 2017
L1: Таблица 2
A2: Показатели по поступлениям и выплатам учреждения на 2017 год (по состоянию на 26.07.2017)
A3: МБОУ "Лицей № 3"
A4: рубли | D4: =D17-K17 -> 153350692
A5: Наименование показателя | B5: Код строки | C5: Код по бюджетной классификации | D5: ВСЕГО | E5: Объем финансового обеспечения, руб. | K5: Поступления от оказания услуг (выполнения работ) на платной основе и от иной приносящей доход деятельности
E6: Субсидия на финансовое обеспечение выполнения муниципального задания | G6: Субсидии, предоставляемые в соответствии с абзацем вторым пункта 1 статьи 78.1 Бюджетного кодекса Российской Федерации | I6: Субсидии на осуществление капитальных вложений
E7: Местный бюджет | F7: Краевой бюджет | G7: Местный бюджет | H7: Краевой бюджет | I7: Местный бюджет | J7: Краевой бюджет | K7: Всего | L7: Из них гранты | M7: ИТОГО МЗ+ИЦ | N7: =SUM(N8:N9) -> 153350692
A8: 1 | B8: 2 | C8: 3 | D8: 4 | E8: 5 | F8: 6 | G8: 7 | H8: 8 | I8: 9 | J8: 10 | K8: 11 | L8: 12 | M8: МЗ | N8: =SUM(E9:F9) -> 143558260
A9: Поступления от доходов, всего: | B9: 100 | C9: х | D9: =SUM(D10:D15) -> 155594729.9 | E9: =SUM(E10:E15) -> 34771600 | F9: =SUM(F10:F15) -> 108786660 | G9: =SUM(G10:G15) -> 6382150 | H9: =SUM(H10:H15) -> 3410282 | I9: х | J9: х | K9: =SUM(K10:K15) -> 2244037.86 | L9: =SUM(L10:L15) -> 0 | M9: ИЦ | N9: =SUM(G9:H9) -> 9792432
A10: в том числе: доходы от собственности | B10: 110 | D10: =SUM(E10:K10) -> 0 | E10: х | F10: х | G10: х | H10: х | I10: х | J10: х | K10: х | L10: х | M10: Пост. от 05.02.2016 № 84 в графе 3 по строкам 110 - 180, 300 - 420 указываются коды классификации операций сектора государственного управления (КОСГУ) | N10: Расходный КОСГУ: 130: ДопЭК 810+мун.задание 140: пени, штрафы (например, за нарушение сроков поставки удерживают с поставщика) 180: ДопЭК 820+иные цели
A11: доходы от оказания услуг, работ | B11: 120 | C11: 130 | D11: 144100960 | E11: =E17 -> 34771600 | F11: =F17 -> 108786660 | G11: х | H11: х | I11: х | J11: х | K11: =436300+3100+12800+67900+K20+K21 -> 542700 | L11: х
A12: доходы от штрафов, пеней, иных сумм принудительного изъятия | B12: 130 | C12: 140 | D12: 0 | E12: х | F12: х | G12: х | H12: х | I12: х | J12: х | K12: 0 | L12: х
A13: безвозмездные поступления от наднациональных организаций, правительств иностранных государств, международных финансовых организаций | B13: 140 | D13: =SUM(E13:K13) -> 0 | E13: х | F13: х | G13: х | H13: х | I13: х | J13: х | K13: х | L13: х
A14: иные субсидии, предоставленные из бюджета | B14: 150 | C14: 180 | D14: =SUM(E14:K14) -> 9792432 | E14: х | F14: х | G14: =G17 -> 6382150 | H14: =H17 -> 3410282 | I14: х | J14: х | K14: х | L14: х
A15: прочие доходы | B15: 160 | C15: 180 | D15: 1701337.86 | E15: х | F15: х | G15: х | H15: х | I15: х | J15: х | K15: =1701337.86 -> 1701337.86
A16: доходы от операций с активами | B16: 180 | D16: 0 | E16: х | F16: х | G16: х | H16: х | I16: х | J16: х | K16: х | L16: х
A17: ВЫПЛАТЫ по расходам, всего: | B17: 200 | C17: х | D17: =SUM(D18,D23,D24,D25,D26,D27,D28,D30,D29) -> 155594729.9 | E17: =SUM(E18,E23,E24,E25,E26,E27,E28,E30,E29) -> 34771600 | F17: 108786660 | G17: =SUM(G18,G23,G24,G25,G26,G27,G28,G30,G29) -> 6382150 | H17: 3410282 | I17: х | J17: х | K17: =SUM(K18,K23,K24,K25,K26,K27,K28,K30,K29) -> 2244037.86 | L17: =SUM(L18,L23,L24,L25,L26,L27,L28,L30,L29) -> 0
A18: в том числе на: выплаты персоналу, всего: | B18: 210 | D18: =SUM(E18:K18) -> 125954460 | E18: =SUM(E19,E22) -> 18111000 | F18: =SUM(F19,F22) -> 104392360 | G18: =SUM(G19,G22) -> 1333000 | H18: =SUM(H19,H22) -> 2095500 | I18: х | J18: х | K18: =SUM(K19,K22) -> 22600 | L18: =SUM(L19,L22) -> 0 | M18: Пост. от 05.02.2016 № 84 по строкам 210 - 280 указываются коды видов расходов бюджетов Т.к. расходная часть плана, то ставлю расходный КВР
A19: из них: оплата труда и начисления на выплаты по оплате труда: | B19: 211 | D19: 122404600 | E19: =SUM(E20:E21) -> 18088000 | F19: =SUM(F20:F21) -> 104294000 | G19: =SUM(G20:G21) -> 0 | H19: =SUM(H20:H21) -> 0 | I19: х | J19: х | K19: =SUM(K20:K21) -> 22600 | L19: =SUM(L20:L21) -> 0
A20: - оплата труда | C20: 111 | D20: 96175500 | E20: 13892400 | F20: 82265300 | I20: х | J20: х | K20: 17800 | L20: х | N20: ДопКР 991
A21: - начисления на выплаты по оплате труда | C21: 119 | D21: 26229100 | E21: 4195600 | F21: 22028700 | I21: х | J21: х | K21: 4800 | L21: х | N21: ДопКР 992
A22: иные выплаты персоналу учреждений, за исключением фонда оплаты труда | B22: 212 | C22: 112 | D22: 3549860 | E22: 23000 | F22: 98360 | G22: 1333000 | H22: 2095500 | I22: х | J22: х | K22: х | L22: х | N22: ДопКР 911,912,913,917,918,919,921,923,924,952
A23: социальные и иные выплаты населению, всего | B23: 220 | D23: 0 | E23: х | F23: х | G23: х | H23: х | I23: х | J23: х | K23: х | L23: х
A24: уплата налогов, сборов и иных платежей, всего | B24: 230 | C24: 831 | D24: =SUM(E24:K24) -> 0 | H24: х | I24: х | J24: х | K24: х | L24: х | N24: ДопКР 962
C25: 852 | D25: 1600 | F25: 1600 | H25: х | I25: х | J25: х | K25: х | L25: х
C26: 853 | D26: 28400 | E26: 0 | F26: 28400 | G26: 0 | H26: х | I26: х | J26: х | K26: х | L26: х
A27: безвозмездные перечисления организациям | B27: 240 | D27: 0 | E27: х | F27: х | G27: х | H27: х | I27: х | J27: х | K27: х | L27: х
A28: прочие расходы (кроме расходов на закупку товаров, работ, услуг) | B28: 250 | C28: 244 | D28: 0 | E28: 0 | F28: 0 | G28: 0 | H28: 0 | I28: х | J28: х | K28: х | L28: х | N28: ДопКР 958
A29: расходы на закупку товаров, работ, услуг, всего | B29: 260 | C29: 244 | D29: =SUM(E29:K29) -> 29241969.86 | E29: 16660600 | F29: 4364300 | G29: =4973500+21300-79950+46300+88000 -> 5049150 | H29: =1134900-323943+3000+132525 -> 946482 | I29: х | J29: х | K29: =436300+3100+12800+67900+1701337.86 -> 2221437.86 | N29: ДопКР 922,925,931,932,933,941,942,943,944,947,951, 953,954,955,956,957,963,971,981,982,983,984,985,995,996
C30: 321 | D30: =SUM(E30:K30) -> 368300 | E30: х | F30: х | G30: х | H30: =444900-76600 -> 368300 | I30: х | J30: х | K30: х | L30: х | N30: ДопКР 993
A31: Остаток средств на начало года | B31: 500 | C31: Х | D31: =SUM(E31:K31) -> 1765878.26 | E31: 0 | F31: 110883.07 | G31: =5561.61+81092.29+8110.23 -> 94764.13 | H31: =388174.19+187163.29+7089.66-2.29 -> 582424.85 | I31: х | J31: х | K31: =627722.1+12047.8+338036.31 -> 977806.21
A32: Остаток средств на конец года | B32: 600 | C32: Х | D32: =SUM(E32:K32) -> 0 | I32: х | J32: х
A35: Заместитель начальника по экономике и финансам | I35: Е.Г. Трофимова
A36: Директор МКУ "ОК УОиДО" | I36: Л.Э. Ерохина
A39: Соколова Т.В.
A40: 43-72-00*3226
A41: Юмина Е.Е.
A42: 43-72-00*3231

Sheet Закупка ТРУ
L1: Таблица 2.1
A2: Показатели выплат по расходам
A3: на закупку товаров, работ, услуг учреждения на 2017-2019 гг. (по состоянию на 26.07.2017)
A4: ='План ФХД 2017'!A3:L3 -> МБОУ "Лицей № 3"
A6: Наименование показателя | B6: Код строки | C6: Год начала закупки | D6: Сумма выплат по расходам на закупку товаров, работ и услуг, руб. (с точностью до двух знаков после запятой - 0,00)
D7: всего на закупки | G7: в том числе:
G8: в соответствии с Федеральным законом от 05.04.2013 N 44-ФЗ "О контрактной системе в сфере закупок товаров, работ, услуг для обеспечения государственных и муниципальных нужд" | J8: в соответствии с Федеральным законом от 18.07.2011 N 223-ФЗ "О закупках товаров, работ, услуг отдельными видами юридических лиц" | N8: всего на закупки
D9: на 2017 г. очередной финансовый год | E9: на 2018 г. 1-й год планового периода | F9: на 2019 г. 2-й год планового периода | G9: на 2017 г. очередной финансовый год | H9: на 2018 г. 1-й год планового периода | I9: на 2019 г. 2-й год планового периода | J9: на 2017 г. очередной финансовый год | K9: на 2018 г. 1-й год планового периода | L9: на 2019 г. 1-й год планового периода | N9: на 2017 г. очередной финансовый год | O9: на 2018 г. 1-й год планового периода | P9: на 2019 г. 2-й год планового периода
A10: 1 | B10: 2 | C10: 3 | D10: 4 | E10: 5 | F10: 6 | G10: 7 | H10: 8 | I10: 9 | J10: 10 | K10: 11 | L10: 12 | N10: КОНТРОЛЬНЫЕ СУММЫ!!!
A11: Выплаты по расходам на закупку товаров, работ, услуг всего: | B11: 0001 | C11: X | D11: =D12+D13 -> 29610269.86 | E11: 26355900 | F11: 26719600 | G11: 29610269.86 | H11: 26355900 | I11: 26719600 | J11: 0 | K11: 0 | L11: 0 | N11: ='План ФХД 2017'!D29+'План ФХД 2017'!D30 -> 29610269.86 | O11: 26355900 | P11: 26719600
A12: в том числе: на оплату контрактов, заключенных до начала очередного финансового года | B12: 1001 | C12: 2016 | D12: =SUM(G12,J12) -> 14524844.6 | E12: 11458302.67 | F12: 4738271.89 | G12: 14524844.6 | H12: 11458302.67 | I12: 4738271.89 | N12: Постановление Администрации города Норильска от 05.02.2016 № 84:
A13: на закупку товаров работ, услуг по году начала закупки | B13: 2001 | C13: 2017 | D13: 15085425.26 | E13: 14897597.33 | F13: 21981328.11 | G13: =N11-G12 -> 15085425.26 | H13: =O11-H12 -> 14897597.33 | I13: 21981328.11 | N13: Раздел 2. Требования к составлению Плана Пункт 2.5.1. В Таблице 2: Абзац 5: При этом, плановые показатели по расходам по строке 260 графы 4 на соответствующий финансовый год должны быть равны показателям граф 4-6 по строке 0001 Таблицы 2.1.
A14: Директор МБОУ "Лицей № 3" | I14: С.В. Яковлева
A17: Басай Тереза Васильевна
A18: тел. 46-24-15
